Cogmind - Beta 13 @@@ ROGUE MODE // 2024.06.05 @ 16:10:25 Player: Arioch Result: Destroyed by Y-45 Defender with Heavy Assault Rifle Performance ------------- Evolutions (2) 1000 Regions Visited (4) 800 Robots Destroyed (12) 60 Value Destroyed (289) 289 Prototype IDs (0) 0 Alien Tech Used (0) 0 Bonus (28) 28 TOTAL SCORE: 2177 Bonus ------- Follower Combat Kills 28 Cogmind --------- Core Integrity 0/550 Matter 269/300 Energy 100/100 System Corruption 0% Temperature Cool (9) Movement Core (200) Ox3 Location -8/Materials Parts ------- > --- POWER (2) -------- (None) > --- PROPULSION (3) --- (None) > --- UTILITY (4) ------ Improved Heat Sink Medium Storage Unit > --- WEAPON (2) ------- (None) > --- INVENTORY (10) --- Light Nuclear Core Improved Heat Sink Compact Battery (200) Improved Shield Generator Corruption Screen Recalibrator Peak State ------------ > --- POWER ------------ Ion Engine Light Nuclear Core > --- PROPULSION ------- Aluminum Leg Aluminum Leg Improved Aluminum Leg > --- UTILITY ---------- Improved Heat Sink Small Storage Unit Signal Interpreter ECM Suite > --- WEAPON ----------- Light Assault Rifle Light Cannon > --- INVENTORY -------- Light Nuclear Core Improved Heat Sink Compact Battery Improved Shield Generator Corruption Screen Recalibrator Heavy Missile Launcher Datajack [Rating: 18] Favorites ----------- Power Ion Engine Engine Ion Engine Power Core Light Nuclear Core Propulsion Aluminum Leg Leg Aluminum Leg Utility Small Storage Unit Device ECM Suite Storage Small Storage Unit Processor Signal Interpreter Protection Light Armor Plating Weapon Light Assault Rifle Ballistic Gun Light Assault Rifle Ballistic Cannon Light Cannon Launcher Heavy Missile Launcher Special Melee Weapon Datajack Build | -11 -10 -9 -9 -8 ------- Run | Yrd Mat Mat Min Mat Slots Evolved 4 | . . 2 . 2 Power 1 | . . 1 . . Propulsion 1 | . . . . 1 Utility 2 | . . 1 . 1 Weapon . | . . . . . Parts Attached 26 | 6 4 1 4 11 Power 4 | 1 . . 2 1 Engine 2 | 1 . . 1 . Core 2 | . . . 1 1 Reactor . | . . . . . Propulsion 6 | 2 . . 1 3 Treads . | . . . . . Leg 6 | 2 . . 1 3 Wheel . | . . . . . Hover . | . . . . . Flight . | . . . . . Utility 7 | 1 2 1 . 3 Device 2 | . . . . 2 Storage 2 | 1 . . . 1 Processor 1 | . 1 . . . Hackware . | . . . . . Protection 2 | . 1 1 . . Artifact . | . . . . . Weapon 9 | 2 2 . 1 4 Energy Gun . | . . . . . Energy Cannon . | . . . . . Ballistic Gun 3 | 2 1 . . . Ballistic Cannon 2 | . . . 1 1 Launcher 1 | . . . . 1 Special Weapon . | . . . . . Impact Weapon . | . . . . . Slashing Weapon . | . . . . . Piercing Weapon . | . . . . . Special Melee Weapon 3 | . 1 . . 2 Unidentified Prototypes . | . . . . . Parts Lost 12 | . . . . 12 Power 2 | . . . . 2 Propulsion 3 | . . . . 3 Utility 3 | . . . . 3 Weapon 4 | . . . . 4 Highest Loss Streak 11 | . . . . 11 To Critical Strikes . | . . . . . Average Slot Usage (%) 96 | . 98 88 99 93 Engine 12 | . 14 11 15 8 Core 5 | . . . 5 8 Leg 23 | . 28 22 22 24 Device 4 | . . . . 14 Storage 10 | . 14 11 11 9 Processor 8 | . 2 11 11 9 Protection 8 | . 9 11 11 1 Ballistic Gun 18 | . 25 22 21 8 Ballistic Cannon 2 | . . . . 7 Naked Turns . | . . . . . Heaviest Build 27 | 12 15 15 22 27 Greatest Support 33 | 20 20 20 23 33 Greatest Overweight (x) 5 | 1 . . 1 5 Average Overweight (x) . | . . . . . Largest Inventory Capacity 10 | 8 8 8 8 10 Average Capacity 8 | 6 8 8 8 8 Most Carried 8 | . 2 2 8 8 Average Carried 5 | . 1 1 6 7 Final Capacity 10 | 8 8 8 8 10 Final Carried 8 | . 2 2 8 6 Class Distribution -------------------- 79% | Mutant 20% | Scavenger-Mutant Dominant Class ---------------- Mutant | -10/Materials Mutant | -9/Materials Mutant | -9/Mines Scavenger-Mutant | -8/Materials Resources | -11 -10 -9 -9 -8 ----------- Run | Yrd Mat Mat Min Mat Matter Collected 603 | 241 66 . 141 155 Remotely . | . . . . . Salvage Created 306 | . 46 . 129 131 Parts 23 | . 6 . 5 12 Haulers Intercepted . | . . . . . Recyclers Shooed . | . . . . . Parts Field Recycled . | . . . . . Retrieved Matter . | . . . . . Parts Self-Destructed . | . . . . . Prevented . | . . . . . Kills | -11 -10 -9 -9 -8 ------- Run | Yrd Mat Mat Min Mat Combat Hostiles Destroyed 10 | . 2 . 3 5 Guns 8 | . 2 . 3 3 Cannons 2 | . . . . 2 Classes Destroyed 6 | . 2 . 1 3 Operator 1 | . . . . 1 Watcher 1 | . 1 . . . Swarmer 5 | . 2 . . 3 Grunt 3 | . . . 3 . Duelist 1 | . . . . 1 Sentry 1 | . . . . 1 Best Kill Streak 3 | . 3 . 2 3 Combat Bots Only 3 | . 2 . 2 3 Max Kills in Single Turn 2 | . 1 . 1 2 Gunslinging . | . . . . . Exploded . | . . . . . Melee . | . . . . . Uniques/NPCs Destroyed . | . . . . . Combat | -11 -10 -9 -9 -8 -------- Run | Yrd Mat Mat Min Mat Hostile Shots Fired 168 | . 24 6 29 109 Missed 44 | . 10 1 10 23 Damage Taken 1726 | . 111 37 208 1370 Core 613 | . 8 9 33 563 Absorbed by Shields . | . . . . . Core Remaining (%) 95 | 100 96 . 89 . Volleys Fired 80 | . 26 1 22 31 Largest 2 | . 2 2 2 2 Hottest 55 | . 40 40 40 55 Shots Fired 156 | . 52 2 44 58 Gun 129 | . 52 2 44 31 Cannon 27 | . . . . 27 Launcher . | . . . . . Special . | . . . . . Kinetic 156 | . 52 2 44 58 Thermal . | . . . . . Explosive . | . . . . . Electromagnetic . | . . . . . Robot Hit Streak 9 | . 3 . 7 9 Robot Miss Streak 11 | . 11 4 2 3 Penetration Max . | . . . . . Secondary Targets . | . . . . . Shots Hit Robots 86 | . 17 . 33 36 Core Hits 28 | . 7 . 8 13 Critical Kills . | . . . . . Critical Parts Destroyed . | . . . . . Critical Strikes 1 | . . . . 1 Blast 1 | . . . . 1 Melee Attacks 9 | . 5 . . 4 Impact . | . . . . . Slashing . | . . . . . Piercing . | . . . . . Sneak Attacks . | . . . . . Combat Hostiles . | . . . . . Follow-up Attacks . | . . . . . Damage Inflicted 951 | . 171 . 281 499 Guns 591 | . 171 . 268 152 Cannons 314 | . . . . 314 Explosions . | . . . . . Melee . | . . . . . Ramming 46 | . . . 13 33 Kinetic 905 | . 171 . 268 466 Thermal . | . . . . . Explosive . | . . . . . Electromagnetic . | . . . . . Impact . | . . . . . Slashing . | . . . . . Piercing . | . . . . . Highest Corruption . | . . . . . Average Corruption . | . . . . . Corruption Purged . | . . . . . Corruption Blocked . | . . . . . Overload Shots . | . . . . . Overflow Damage . | . . . . . Projectiles . | . . . . . Explosions . | . . . . . Melee . | . . . . . Knockbacks 6 | . . . . 6 Impact . | . . . . . Kinetic 5 | . . . . 5 Secondary 1 | . . . . 1 Self-Inflicted Damage . | . . . . . Shots . | . . . . . Rammed 1 | . . . . 1 Targets Rammed 7 | . . . 3 4 Kicked 6 | . . . 3 3 Crushed . | . . . . . Highest Temperature 122 | . 12 . 122 80 Average Temperature 34 | . 6 . 54 29 Received Heat Transfer 783 | . . . 126 657 Siege Activations . | . . . . . Robots Corrupted . | . . . . . Combat Hostiles . | . . . . . Parts Fried . | . . . . . Impact Corruptions . | . . . . . Robots Melted . | . . . . . Combat Hostiles . | . . . . . Parts Melted . | . . . . . Heat Transferred . | . . . . . Parts Sabotaged . | . . . . . Parts Stolen . | . . . . . Parts Stripped . | . . . . . Power Chain Reactions . | . . . . . Alert | -11 -10 -9 -9 -8 ------- Run | Yrd Mat Mat Min Mat Peak Influence 201 | . 108 45 134 201 Initial 52 | . . 45 17 52 Average 70 | . 36 45 46 144 Maximum Alert Level 1 | . . . . 1 Low Security (%) 98 | 100 100 100 100 92 Level 1 1 | . . . . 7 Level 2 . | . . . . . Level 3 . | . . . . . Level 4 . | . . . . . Level 5 . | . . . . . High Security . | . . . . . Max Security . | . . . . . Squads Dispatched 2 | . . . 1 1 Investigation 1 | . . . 1 . Extermination . | . . . . . Reinforcement 1 | . . . . 1 Assault . | . . . . . Garrison . | . . . . . Intercept . | . . . . . Searches Triggered . | . . . . . Construction Impeded . | . . . . . Haulers Reinforced . | . . . . . Active Scanning Responses . | . . . . . Cargo Convoy Interrupts . | . . . . . Stealth | -11 -10 -9 -9 -8 --------- Run | Yrd Mat Mat Min Mat Distress Signals 1 | . . . . 1 Communications Jammed . | . . . . . Distress Signals . | . . . . . Times Spotted 35 | . 10 3 9 13 Peak Tracking Total 7 | . 6 3 4 7 Tactical Retreats 4 | . . . 2 2 Traps | -11 -10 -9 -9 -8 ------- Run | Yrd Mat Mat Min Mat Traps Triggered . | . . . . . Indirectly . | . . . . . Trap Hack Attempts 14 | . . . . 14 Triggered . | . . . . . Disarmed 2 | . . . . 2 Reprogrammed . | . . . . . Reused . | . . . . . Traps Extracted . | . . . . . Installed . | . . . . . Triggered . | . . . . . Machines | -11 -10 -9 -9 -8 ---------- Run | Yrd Mat Mat Min Mat Machines Disabled . | . . . . . Max in Single Turn . | . . . . . Machines Repaired . | . . . . . Machines Dismantled . | . . . . . Machines Sabotaged . | . . . . . Overloaded Fab Kills . | . . . . . Hacking | -11 -10 -9 -9 -8 --------- Run | Yrd Mat Mat Min Mat Machines Accessed 4 | . 2 . 1 1 Terminals 2 | . 1 . . 1 Fabricators . | . . . . . Repair Stations . | . . . . . Recycling Units 1 | . 1 . . . Scanalyzers . | . . . . . Garrison Access . | . . . . . Total Hacks 8 | . 4 . 1 3 Successful 7 | . 4 . 1 2 Failed 1 | . . . . 1 Catastrophic 1 | . . . . 1 Database Lockouts . | . . . . . Manual 7 | . 4 . . 3 Terminals 6 | . 3 . . 3 Fabricators . | . . . . . Repair Stations . | . . . . . Recycling Units 1 | . 1 . . . Scanalyzers . | . . . . . Garrison Access . | . . . . . Terminal Hacks 2 | . 1 . 1 . Open Door 1 | . . . 1 . Zone Layout 1 | . 1 . . . Fabricator Hacks . | . . . . . Repair Station Hacks . | . . . . . Recycling Unit Hacks . | . . . . . Scanalyzer . | . . . . . Garrison Access Hacks . | . . . . . Unauthorized Hacks 5 | . 3 . . 2 Terminals 4 | . 2 . . 2 Track 2 | . 1 . . 1 Botnet 2 | . 1 . . 1 Fabricators . | . . . . . Repair Stations . | . . . . . Recycling Units 1 | . 1 . . . Reject 1 | . 1 . . . Scanalyzers . | . . . . . Garrison Access . | . . . . . Data Cores Recovered . | . . . . . Used . | . . . . . Hacking Detections 3 | . 2 . . 1 Full Trace Events . | . . . . . Feedback Events . | . . . . . Feedback Blocked . | . . . . . Robot Schematics Acquired . | . . . . . Robots Built . | . . . . . Authchips . | . . . . . Time . | . . . . . Total Robot Build Rating . | . . . . . Part Schematics Acquired . | . . . . . Parts Built . | . . . . . Authchips . | . . . . . Time . | . . . . . Total Part Build Rating . | . . . . . Parts Repaired . | . . . . . Time . | . . . . . Parts Recycled . | . . . . . Recycled Matter . | . . . . . Retrieved Matter . | . . . . . Retrieved Components . | . . . . . Parts Scanalyzed . | . . . . . Part Schematics Acquired . | . . . . . Parts Damaged . | . . . . . Bothacking | -11 -10 -9 -9 -8 ------------ Run | Yrd Mat Mat Min Mat Used RIF Installer . | . . . . . Robots Hacked 1 | . . . . 1 Non-combat 1 | . . . . 1 Combat . | . . . . . Robot Hacks Applied 1 | . . . . 1 parse_system 1 | . . . . 1 Relay Couplers Released . | . . . . . Fabnet Peak Effective % . | . . . . . Robots Rewired . | . . . . . Allies Hacked . | . . . . . Hacks Repelled . | . . . . . Allies | -11 -10 -9 -9 -8 -------- Run | Yrd Mat Mat Min Mat Total Allies 3 | . . . 3 . Largest Group 3 | . . . 3 2 Highest-Rated Group 40 | . . . 40 24 Highest-Rated Ally 16 | . . . 16 16 Total Orders . | . . . . . Ally Attacks 12 | . . . 7 5 Total Damage 101 | . . . 75 26 Kills 4 | . . . 4 . Allies Corrupted . | . . . . . Allies Melted . | . . . . . Intel | -11 -10 -9 -9 -8 ------- Run | Yrd Mat Mat Min Mat Robot Analysis Total . | . . . . . Derelict Logs Recovered 2 | . . . 2 . Drone Launches . | . . . . . Drone Recoveries . | . . . . . Exploration | -11 -10 -9 -9 -8 ------------- Run | Yrd Mat Mat Min Mat Turns Passed 1405 | 53 259 64 630 399 Spaces Moved 835 | 41 145 50 387 212 Core 20 | 12 . . . 8 Treads . | . . . . . Legs 815 | 29 145 50 387 204 Wheels . | . . . . . Hover . | . . . . . Flight . | . . . . . Fastest Speed 50 | 50 120 120 120 120 Average Speed 129 | 108 120 120 139 123 Slowest Speed 300 | 120 120 120 190 300 Overloaded Moves . | . . . . . Propulsion Burnouts . | . . . . . Robots Hopped . | . . . . . Cave-ins Triggered . | . . . . . Exploration Rate (%) 30 | 5 30 6 88 21 Regions Visited 4 Branch Regions 1 Pre-discovered Areas . | . . . . . Known Exits Taken 3 | . 1 1 1 . Unknown Exits Taken 1 | 1 . . . . Scrap Searched 4 | . . . 4 . Spaces Dug . | . . . . . Terrain Destroyed . | . . . . . Melee . | . . . . . Projectile . | . . . . . AOE . | . . . . . Terrain Rammed . | . . . . . Walls Destroyed . | . . . . . Machines Disabled . | . . . . . Actions | -11 -10 -9 -9 -8 --------- Run | Yrd Mat Mat Min Mat Total 1020 | 46 186 52 442 294 Wait 24 | . 3 . 12 9 Move 831 | 40 144 49 386 212 Hop . | . . . . . Pick Up 14 | . 1 1 9 3 Fast Attach 13 | 6 2 . 3 2 Attach 8 | . 2 1 . 5 Detach 3 | . 3 . . . Swap 5 | . . . 1 4 Drop 12 | . . . 6 6 Fire 80 | . 26 1 22 31 Melee 9 | . 5 . . 4 Ram 1 | . . . . 1 Kick 6 | . . . 3 3 Crush . | . . . . . Escape Stasis . | . . . . . Rewire . | . . . . . Trap 14 | . . . . 14 Miscellaneous . | . . . . . Route ------- -11/Scrapyard -10/Materials -9/Materials -9/Mines -8/Materials (discovered 2 exits: Fac x2) History --------- Turn | Location | Event 19 | -11/Scrapyard | Discovered new exit (range 15) 54 | -11/Scrapyard | Entered Materials 249 | -10/Materials | Discovered new exit (range 18) 302 | -10/Materials | Identified exit to Materials 303 | -10/Materials | Build established: Mutant 313 | -10/Materials | Entered another Materials area 313 | -9/Materials | Evolved 2 slots: Power x1, Utility x1 356 | -9/Materials | Discovered new exit (range 15) 373 | -9/Materials | Identified exit to Mines 377 | -9/Materials | Entered Mines 442 | -9/Mines | Learned location of 2 exits from Materials 498 | -9/Mines | Met a Derelict shopkeep closing up shop 569 | -9/Mines | Received a Rocket Launcher from a helpful Derelict 698 | -9/Mines | Learned Materials trap positions 751 | -9/Mines | Assisted by bots powering up and referring to "LRC-V3" 995 | -9/Mines | Discovered new exit (range 9) 1005 | -9/Mines | Identified exit to Materials 1007 | -9/Mines | Entered Materials 1007 | -8/Materials | Accompanied by 2 allies 1007 | -8/Materials | Evolved 2 slots: Propulsion x1, Utility x1 1008 | -8/Materials | Identified exit to Factory 1009 | -8/Materials | Loaded intel: 18 trap records 1393 | -8/Materials | Core integrity fell below 50% 1400 | -8/Materials | Core integrity fell below 20% 1406 | -8/Materials | Destroyed by Y-45 Defender with Heavy Assault Rifle Last Messages --------------- L-31 Rogue destroyed. Critical hit (Burn: +37). ECM Suite destroyed. Lgt. Cannon destroyed. Critical hit (Burn: +37). Aluminum Leg destroyed. Critical hit (Burn: +37). K-01 Serf collects debris. Lgt. Assault Rifle destroyed. Dropped Hvy. Missile Launcher. Critical hit (Burn: +37). Acquired Hvy. Missile Launcher. Critical hit (Burn: +37). Hvy. Missile Launcher destroyed. Signal Interpreter destroyed. Critical hit (Burn: +37). Datajack destroyed. Slammed into G-47 Trooper. Destabilizing: System interference. Imp. Heat Sink temporarily disabled. Map ----- +----------------------------------------------------+ | ?????????????????????????????????????????????????? | | ?????????????????????????????????????????????????? | | ?????????????????????????????????????????????????? | | ?????????????????????????????????????????????????? | | ?????????????????????????????????????????????????? | | ?????????????????????????????????????????????????? | | ?????????????????????????????????????????????????? | | ?????????????????????????????????????????????????? | | ?????????????????????????????????????????????????? | | ?????????????????????????????????????????????????? | | ?????????????????????????????????????????????????? | | ?????????????????????????????????????????????????? | | ?????????????????????????????????????????????????? | | ?????????????????????????????????????????????????? | | ???????????????????????????????????????????????? | | ?????????????????? ??????????????????????????# | | ????????????????? ??????????????????????????# | | ????????????????? ??????????????????????????# | | ?????????????????# #######???????????????????# | | ?????????????????# ## #???????????????????# | | ?????????????????# ## #???????????????????# | | ?????????????????# ## #???????????????????# | | ?????????????????# ## #???????????????????# | | ?????????????????# ## = #???????????????????# | | ?????????????????# ## #???????????????????# | | ?????????????????# ## @=###########?????????# | | ?????????????????# ##YgYg## #?????????# | | ??????^^^????????# ## %!## #?????????# | | ??????^^^????????# ###+#### #?????????# | | ?????????????????# # #?????????# | | ???????